[Event "Marienbad Open-A2 2019"]
[Site "Marianske Lazne"]
[Date "2019.01.23"]
[Round "6"]
[White "Swicarz, Maciej"]
[Black "Vokac, Marek"]
[Result "1-0"]
[ECO "B90"]
[WhiteElo "2331"]
[BlackElo "2380"]
[Annotator "NA"]
[PlyCount "111"]
[EventDate "2019.01.17"]
[EventType "tourn"]
[EventCountry "CZE"]
[SourceTitle "playchess.com"]
[Source "ChessBase"]
[SourceQuality "1"]
[TimeControl "40/5400+30:1800+30"]

1. e4 {[%emt 0:00:00]} c5 {[%emt 0:00:55]} 2. Nf3 {[%emt 0:00:11]} d6 {[%emt 0:00:30]} 3. d4 {[%emt 0:00:23]} cxd4 {[%emt 0:00:08]} 4. Nxd4 {[%emt 0:00:05]} Nf6 {[%emt 0:00:11]} 5. Nc3 {[%emt 0:00:06]} a6 {[%emt 0:00:31]} 6. f3 {[%emt 0:02:34]} e5 {[%emt 0:00:37]} 7. Nb3 {[%emt 0:00:04]} Be7 {[%emt 0:00:49]} 8. Be3 {[%emt 0:00:05]} Be6 {[%emt 0:00:09]} 9. Qd2 {[%emt 0:00:19]} O-O {[%emt 0:00:06]} 10. O-O-O {[%emt 0:00:36]} a5 {[%emt 0:00:15]} 11. a4 {[%emt 0:00:19]} Na6 {[%emt 0:00:29]} 12. g4 {[%emt 0:02:00]} Nb4 {[%emt 0:01:03]} 13. g5 {[%emt 0:04:13]} Nh5 {[%emt 0:00:13]} 14. h4 {[%emt 0:02:32]} Qc8 {[%emt 0:05:19]} 15. Kb1 {[%emt 0:02:30]} Ng3 {[%emt 0:03:03]} 16. Rg1 {[%emt 0:07:45]} Nxf1 {[%emt 0:00:28]} 17. Rgxf1 {[%emt 0:00:23]} Qc4 {[%emt 0:00:20]} 18. Nc1 {[%emt 0:05:59]} Rfc8 {[%emt 0:07:11]} 19. f4 {[%emt 0:07:08]} Bg4 {[%emt 0:14:07]} 20. Rde1 {[%emt 0:02:54]} d5 {[%emt 0:16:14]} 21. fxe5 {[%emt 0:21:21]} dxe4 {[%emt 0:01:30]} 22. Rf4 {[%emt 0:06:13]} Be6 {[%emt 0:02:06]} 23. N1e2 {[%emt 0:11:26]} Rd8 {[%emt 0:04:05]} 24. Nd4 {[%emt 0:01:40]} Na2 {[%emt 0:11:49]} 25. Nxe4 {[%emt 0:02:01]} Qxa4 {[%emt 0:05:37]} 26. Nxe6 {[%emt 0:02:16]} Rxd2 {[%emt 0:01:29]} 27. Nf6+ {[%emt 0:00:12]} gxf6 {[%emt 0:02:19]} 28. Rxa4 {[%emt 0:00:04]} Rg2 {[%emt 0:02:19]} 29. Nf4 {[%emt 0:02:47]} Rg4 {[%emt 0:03:12]} 30. Rxa2 {[%emt 0:01:57]} fxe5 {[%emt 0:01:29]} 31. Nd5 {[%emt 0:00:04]} Bd8 {[%emt 0:00:08]} 32. Bb6 {[%emt 0:01:59]} Rxh4 {[%emt 0:01:29]} 33. Bxd8 {[%emt 0:00:11]} Rxd8 {[%emt 0:00:06]} 34. Rxa5 {[%emt 0:00:12]} Kg7 {[%emt 0:03:11]} 35. Ne7 {[%emt 0:03:52]} Rh2 {[%emt 0:00:54]} 36. Raxe5 {[%emt 0:01:24]} Rdd2 {[%emt 0:00:09]} 37. Rc5 {[%emt 0:00:42]} Rde2 {[%emt 0:01:16]} 38. Nf5+ {[%emt 0:04:32]} Kg6 {[%emt 0:00:31]} 39. Ne7+ {[%emt 0:00:26]} Kg7 {[%emt 0:00:10]} 40. Nf5+ {[%emt 0:00:04]} Kg6 {[%emt 0:00:11]} 41. Rd1 {[%emt 0:34:40]} b6 {[%emt 0:31:36]} 42. Rd6+ {[%emt 0:01:15]} Kxg5 {[%emt 0:01:45]} 43. Rxb6 {[%emt 0:00:16]} Ref2 {[%emt 0:02:56]} 44. Nd6+ {[%emt 0:00:00]} Kg4 {[%emt 0:00:00]} 45. Rb4+ {[%emt 0:00:00]} Rf4 {[%emt 0:00:00]} 46. Rxf4+ {[%emt 0:00:00]} Kxf4 {[%emt 0:00:00]} 47. Rf5+ {[%emt 0:00:00]} Kg4 {[%emt 0:00:00]} 48. Rxf7 {[%emt 0:00:00]} h5 {[%emt 0:00:00]} 49. Nf5 {[%emt 0:00:00]} Re2 {[%emt 0:00:00]} 50. b3 {[%emt 0:00:00]} Re5 {[%emt 0:00:00]} 51. Nd4 {[%emt 0:00:00]} Re3 {[%emt 0:00:00]} 52. Kc1 {[%emt 0:00:00]} h4 {[%emt 0:00:00]} 53. Kd2 {[%emt 0:00:00]} Re8 {[%emt 0:00:00]} 54. Rg7+ {[%emt 0:00:00]} Kh3 {[%emt 0:00:00]} 55. Nf5 {[%emt 0:00:00]} Re5 {[%emt 0:00:00]} 56. Nxh4 {[%emt 0:00:00]} 1-0

[Event "Marienbad Open-A2 2019"]
[Site "Marianske Lazne"]
[Date "2019.01.24"]
[Round "7"]
[White "Vokac, Marek"]
[Black "Swayams, Mishra"]
[Result "0-1"]
[ECO "D35"]
[WhiteElo "2380"]
[BlackElo "2432"]
[Annotator "NA RC"]
[PlyCount "66"]
[EventDate "2019.01.17"]
[EventType "tourn"]
[EventCountry "CZE"]
[SourceTitle "playchess.com"]
[Source "ChessBase"]
[SourceQuality "1"]
[TimeControl "40/5400+30:1800+30"]

1. c4 {[%emt 0:00:47]} e6 {[%emt 0:02:46]} 2. Nc3 {[%emt 0:00:17]} d5 {[%emt 0:00:11]} 3. d4 {[%emt 0:00:10]} Nf6 {[%emt 0:00:12]} 4. Bg5 {[%emt 0:00:25]} Bb4 {[%emt 0:04:14]} 5. cxd5 {[%emt 0:01:15]} exd5 {[%emt 0:00:03]} 6. e3 h6 7. Bxf6 {[%emt 0:07:53]} Qxf6 {[%emt 0:01:14]} 8. Qb3 Qd6 9. a3 {[%emt 0:12:44]} Bxc3+ {[%emt 0:12:14]} 10. bxc3 {[%emt 0:06:02]} O-O {[%emt 0:00:46]} 11. Nf3 {[%emt 0:00:30]} c5 {[%emt 0:03:01]} 12. dxc5 {[%emt 0:02:24]} Qxc5 {[%emt 0:00:48]} 13. Qb4 {[%emt 0:00:08]} Qc7 {[%emt 0:06:17]} 14. Bd3 {[%emt 0:00:10]} Be6 {[%emt 0:00:27]} 15. O-O {[%emt 0:10:33]} Nd7 {[%emt 0:02:15]} 16. Nd4 {[%emt 0:03:15]} Ne5 {[%emt 0:00:39]} 17. Be2 {[%emt 0:03:02]} Rac8 {[%emt 0:01:48]} 18. Rab1 {[%emt 0:17:02]} b6 {[%emt 0:03:56]} 19. Ba6 {[%emt 0:00:04]} Rcd8 {[%emt 0:00:35]} 20. Rbc1 {[%emt 0:02:56]} Bc8 {[%emt 0:13:30]} 21. Be2 {[%emt 0:01:24]} Bb7 {[%emt 0:05:47]} 22. a4 {[%emt 0:04:06]} Rfe8 {[%emt 0:01:55]} 23. h3 {[%emt 0:03:35]} Kh8 {[%emt 0:27:35]} 24. Rcd1 {[%emt 0:04:59]} a6 {[%emt 0:02:24]} 25. Rb1 {[%emt 0:06:22]} Rd6 {[%emt 0:06:10]} 26. a5 {[%emt 0:00:08]} Nd7 {[%emt 0:00:27]} 27. Bg4 {[%emt 0:01:30]} b5 {[%emt 0:00:43]} 28. Bxd7 {[%emt 0:04:29]} Qxd7 {[%emt 0:00:06]} 29. Rbd1 {[%emt 0:00:20]} Rg6 {[%emt 0:00:29]} 30. Kh2 {[%emt 0:01:33]} Re4 {[%emt 0:00:53]} 31. Rh1 {[%emt 0:02:42]} Rh4 {[%emt 0:01:33]} 32. f4 {[%emt 0:00:57]} Qg4 {[%emt 0:00:24]} 33. Qb2 {[%emt 0:01:36]} Rxh3+ {[%emt 0:00:08]} 0-1

[Event "Marienbad Open-A2 2019"]
[Site "Marianske Lazne"]
[Date "2019.01.24"]
[Round "7"]
[White "Yeritsyan, Aram"]
[Black "Kovalev, Andrei"]
[Result "1/2-1/2"]
[ECO "B41"]
[WhiteElo "2349"]
[BlackElo "2520"]
[Annotator "ChessBase"]
[PlyCount "96"]
[EventDate "2019.01.17"]
[EventType "tourn"]
[EventCountry "CZE"]
[SourceTitle "playchess.com"]
[Source "ChessBase"]
[SourceQuality "1"]
[TimeControl "40/5400+30:1800+30"]

1. e4 {[%emt 0:00:00]} c5 {[%emt 0:00:00]} 2. Nf3 {[%emt 0:00:00]} e6 {[%emt 0:00:06]} 3. d4 {[%emt 0:00:00]} cxd4 {[%emt 0:00:05]} 4. Nxd4 {[%emt 0:00:00]} a6 {[%emt 0:00:08]} 5. c4 {[%emt 0:00:00]} Nf6 {[%emt 0:00:31]} 6. Nc3 {[%emt 0:00:00]} Qc7 {[%emt 0:00:05]} 7. Be2 {[%emt 0:00:00]} b6 {[%emt 0:00:17]} 8. Be3 {[%emt 0:01:25]} Bb7 {[%emt 0:00:43]} 9. f3 {[%emt 0:00:05]} Nc6 {[%emt 0:00:26]} 10. Qd2 {[%emt 0:01:54]} Bc5 {[%emt 0:06:48]} 11. O-O {[%emt 0:03:31]} Nxd4 {[%emt 0:03:49]} 12. Bxd4 {[%emt 0:01:46]} Qd6 {[%emt 0:06:19]} 13. Rfd1 {[%emt 0:01:20]} Qxd4+ {[%emt 0:08:21]} 14. Qxd4 {[%emt 0:00:44]} Bxd4+ {[%emt 0:00:12]} 15. Rxd4 {[%emt 0:00:05]} e5 {[%emt 0:00:03]} 16. Rd6 {[%emt 0:05:35]} Bc6 {[%emt 0:00:11]} 17. b4 {[%emt 0:00:03]} Ke7 {[%emt 0:00:16]} 18. Rad1 {[%emt 0:00:27]} Rhc8 {[%emt 0:07:16]} 19. f4 {[%emt 0:15:49]} exf4 {[%emt 0:19:54]} 20. e5 {[%emt 0:19:56]} Ne8 {[%emt 0:00:12]} 21. R6d4 {[%emt 0:07:42]} f6 {[%emt 0:10:26]} 22. exf6+ {[%emt 0:03:32]} Nxf6 {[%emt 0:00:06]} 23. Rxf4 {[%emt 0:00:02]} Re8 {[%emt 0:02:23]} 24. Rfd4 {[%emt 0:04:18]} Kd8 {[%emt 0:03:10]} 25. Bd3 {[%emt 0:02:48]} Kc7 {[%emt 0:02:04]} 26. Rc1 {[%emt 0:17:51]} Re5 {[%emt 0:07:28]} 27. b5 {[%emt 0:03:21]} Bb7 {[%emt 0:00:10]} 28. Na4 {[%emt 0:03:27]} d6 {[%emt 0:04:08]} 29. bxa6 {[%emt 0:00:12]} Bxa6 {[%emt 0:02:38]} 30. Rb1 {[%emt 0:01:12]} Bb7 {[%emt 0:02:53]} 31. Nc3 {[%emt 0:02:35]} Bc6 {[%emt 0:00:29]} 32. Bc2 {[%emt 0:00:49]} Rae8 {[%emt 0:03:50]} 33. Rbd1 {[%emt 0:01:01]} Rc5 {[%emt 0:04:40]} 34. Ba4 {[%emt 0:01:18]} Re3 {[%emt 0:01:41]} 35. Nb5+ {[%emt 0:02:44]} Bxb5 {[%emt 0:00:05]} 36. Bxb5 {[%emt 0:00:01]} Re6 {[%emt 0:03:32]} 37. a4 {[%emt 0:00:04]} Rce5 {[%emt 0:00:08]} 38. R4d2 {[%emt 0:02:26]} h5 {[%emt 0:00:14]} 39. Ra2 {[%emt 0:00:43]} Ng4 {[%emt 0:01:08]} 40. g3 {[%emt 0:00:32]} h4 {[%emt 0:00:56]} 41. gxh4 {[%emt 0:30:27]} Ne3 {[%emt 0:30:30]} 42. Rc1 {[%emt 0:00:00]} Rf5 {[%emt 0:00:00]} 43. Kh1 {[%emt 0:00:00]} Ng4 {[%emt 0:00:00]} 44. Rg2 {[%emt 0:00:00]} Nf2+ {[%emt 0:00:00]} 45. Kg1 {[%emt 0:00:00]} Nh3+ {[%emt 0:00:00]} 46. Kh1 {[%emt 0:00:00]} Nf2+ {[%emt 0:00:00]} 47. Kg1 {[%emt 0:00:00]} Nh3+ {[%emt 0:00:00]} 48. Kh1 {[%emt 0:00:00]} Nf2+ {[%emt 0:00:00]} 1/2-1/2

[Event "Marienbad Open-A2 2019"]
[Site "Marianske Lazne"]
[Date "2019.01.25"]
[Round "8"]
[White "Gungl, Theo"]
[Black "Yeritsyan, Aram"]
[Result "1-0"]
[ECO "E40"]
[WhiteElo "2368"]
[BlackElo "2349"]
[Annotator "NA"]
[PlyCount "85"]
[EventDate "2019.01.17"]
[EventType "tourn"]
[EventCountry "CZE"]
[SourceTitle "playchess.com"]
[Source "ChessBase"]
[SourceQuality "1"]
[TimeControl "40/5400+30:1800+30"]

1. d4 {[%emt 0:00:00]} Nf6 {[%emt 0:01:31]} 2. c4 {[%emt 0:00:00]} e6 {[%emt 0:00:02]} 3. Nc3 {[%emt 0:00:00]} Bb4 {[%emt 0:00:03]} 4. e3 {[%emt 0:00:00]} d5 {[%emt 0:00:02]} 5. Nge2 {[%emt 0:00:54]} dxc4 {[%emt 0:00:05]} 6. a3 {[%emt 0:12:40]} Ba5 {[%emt 0:02:40]} 7. Qa4+ {[%emt 0:01:49]} Nc6 {[%emt 0:00:25]} 8. Qxc4 {[%emt 0:00:42]} O-O {[%emt 0:00:54]} 9. b4 {[%emt 0:06:51]} Bb6 {[%emt 0:00:04]} 10. g3 {[%emt 0:02:54]} e5 {[%emt 0:06:07]} 11. d5 {[%emt 0:00:13]} Ne7 {[%emt 0:00:09]} 12. Bg2 {[%emt 0:00:44]} c6 {[%emt 0:02:43]} 13. e4 cxd5 {[%emt 0:01:59]} 14. exd5 {[%emt 0:08:20]} Bf5 {[%emt 0:07:54]} 15. Bg5 {[%emt 0:14:59]} Rc8 {[%emt 0:03:23]} 16. Qa2 {[%emt 0:06:41]} Ne8 {[%emt 0:14:02]} 17. Rd1 {[%emt 0:04:25]} Nd6 {[%emt 0:00:55]} 18. O-O {[%emt 0:00:57]} f6 {[%emt 0:01:14]} 19. Bc1 {[%emt 0:01:07]} Qd7 {[%emt 0:00:58]} 20. Qb3 {[%emt 0:08:20]} Rc4 {[%emt 0:09:37]} 21. Bb2 {[%emt 0:01:24]} Rfc8 {[%emt 0:03:31]} 22. Rc1 {[%emt 0:00:18]} Bh3 {[%emt 0:01:41]} 23. Qd1 {[%emt 0:09:50]} Ng6 {[%emt 0:01:42]} 24. Na4 {[%emt 0:04:48]} Bxg2 {[%emt 0:07:53]} 25. Kxg2 {[%emt 0:00:14]} Nh4+ {[%emt 0:18:39]} 26. gxh4 {[%emt 0:01:48]} Rxh4 {[%emt 0:00:03]} 27. Rxc8+ {[%emt 0:02:41]} Qxc8 {[%emt 0:00:04]} 28. Ng1 {[%emt 0:01:34]} Qf5 {[%emt 0:03:21]} 29. Nxb6 {[%emt 0:04:16]} Qg6+ {[%emt 0:02:29]} 30. Kh1 {[%emt 0:00:07]} e4 {[%emt 0:00:02]} 31. Qb3 {[%emt 0:01:32]} Qh5 {[%emt 0:03:01]} 32. Qg3 {[%emt 0:00:42]} Nf5 {[%emt 0:00:04]} 33. Qb8+ {[%emt 0:00:09]} Kf7 {[%emt 0:00:01]} 34. Nd7 {[%emt 0:00:47]} Qg4 {[%emt 0:02:19]} 35. Bxf6 {[%emt 0:01:28]} gxf6 {[%emt 0:01:13]} 36. Qf8+ {[%emt 0:00:04]} Kg6 {[%emt 0:00:02]} 37. Qxf6+ {[%emt 0:00:05]} Kh5 {[%emt 0:00:02]} 38. Qf7+ {[%emt 0:00:35]} Kh6 {[%emt 0:00:09]} 39. Qf6+ {[%emt 0:00:39]} Kh5 {[%emt 0:00:03]} 40. Qf7+ {[%emt 0:00:15]} Kh6 {[%emt 0:00:54]} 41. Qe6+ {[%emt 0:32:35]} Kg5 {[%emt 0:30:27]} 42. Qg8+ {[%emt 0:00:12]} Kf4 {[%emt 0:00:15]} 43. Qxg4+ {[%emt 0:00:08]} 1-0

[Event "Marienbad Open-A2 2019"]
[Site "Marianske Lazne"]
[Date "2019.01.26"]
[Round "9"]
[White "Swayams, Mishra"]
[Black "Kriebel, Tadeas"]
[Result "0-1"]
[ECO "A40"]
[WhiteElo "2432"]
[BlackElo "2519"]
[Annotator "ChessBase"]
[PlyCount "184"]
[EventDate "2019.01.17"]
[EventType "tourn"]
[EventCountry "CZE"]
[SourceTitle "playchess.com"]
[Source "ChessBase"]
[SourceQuality "1"]
[TimeControl "40/5400+30:1800+30"]

1. d4 {[%emt 0:00:58]} Nf6 {[%emt 0:05:25]} 2. Nf3 {[%emt 0:00:07]} g6 {[%emt 0:00:46]} 3. Bg5 {[%emt 0:00:07]} Bg7 {[%emt 0:00:08]} 4. Nbd2 {[%emt 0:00:07]} O-O {[%emt 0:00:31]} 5. c3 {[%emt 0:00:04]} d6 {[%emt 0:00:25]} 6. e4 {[%emt 0:00:09]} h6 {[%emt 0:01:53]} 7. Bh4 {[%emt 0:00:11]} Bg4 {[%emt 0:03:30]} 8. h3 {[%emt 0:03:09]} Bxf3 {[%emt 0:00:23]} 9. Qxf3 {[%emt 0:00:03]} Nbd7 {[%emt 0:02:00]} 10. Be2 {[%emt 0:03:39]} c5 {[%emt 0:01:55]} 11. d5 {[%emt 0:04:01]} a6 {[%emt 0:02:07]} 12. a4 {[%emt 0:07:16]} b5 {[%emt 0:00:38]} 13. O-O {[%emt 0:00:52]} c4 {[%emt 0:01:22]} 14. axb5 {[%emt 0:06:34]} axb5 {[%emt 0:00:04]} 15. b3 {[%emt 0:00:36]} Qb6 {[%emt 0:05:52]} 16. bxc4 {[%emt 0:44:44]} Ne5 {[%emt 0:01:29]} 17. Qe3 {[%emt 0:00:07]} Qxe3 {[%emt 0:00:05]} 18. fxe3 {[%emt 0:00:02]} g5 {[%emt 0:03:36]} 19. Bf2 {[%emt 0:09:06]} Nxc4 {[%emt 0:05:39]} 20. Bxc4 {[%emt 0:00:07]} bxc4 {[%emt 0:00:05]} 21. Rfc1 {[%emt 0:00:05]} Rfc8 {[%emt 0:04:43]} 22. Kf1 {[%emt 0:00:19]} Nd7 {[%emt 0:00:27]} 23. Rxa8 {[%emt 0:03:40]} Rxa8 {[%emt 0:00:02]} 24. Nxc4 {[%emt 0:00:06]} Ra4 {[%emt 0:09:37]} 25. Nd2 {[%emt 0:00:52]} Ra2 {[%emt 0:00:18]} 26. Be1 {[%emt 0:10:52]} Nc5 {[%emt 0:00:12]} 27. c4 {[%emt 0:00:13]} Kh7 {[%emt 0:03:27]} 28. Rb1 {[%emt 0:02:09]} Kg6 {[%emt 0:00:25]} 29. Rd1 {[%emt 0:02:30]} Bc3 {[%emt 0:05:34]} 30. Nf3 {[%emt 0:00:21]} Bxe1 {[%emt 0:00:58]} 31. Rxe1 {[%emt 0:01:44]} Nxe4 {[%emt 0:00:20]} 32. Rd1 {[%emt 0:00:32]} Rc2 {[%emt 0:00:47]} 33. Rd4 {[%emt 0:00:31]} Ng3+ {[%emt 0:00:16]} 34. Ke1 {[%emt 0:00:03]} Re2+ {[%emt 0:01:19]} 35. Kd1 {[%emt 0:00:01]} Rxe3 {[%emt 0:00:17]} 36. Rd2 {[%emt 0:00:28]} Ne4 {[%emt 0:02:53]} 37. Rb2 {[%emt 0:00:46]} f5 {[%emt 0:01:17]} 38. Rb8 {[%emt 0:00:37]} g4 {[%emt 0:04:11]} 39. hxg4 {[%emt 0:00:01]} fxg4 {[%emt 0:00:06]} 40. Ne1 {[%emt 0:00:26]} Rc3 {[%emt 0:03:32]} 41. Rg8+ {[%emt 0:02:41]} Kf7 {[%emt 0:05:50]} 42. Rxg4 {[%emt 0:01:14]} Rxc4 {[%emt 0:00:05]} 43. Rf4+ {[%emt 0:00:39]} Kg6 {[%emt 0:00:06]} 44. Nd3 {[%emt 0:00:59]} Nc3+ {[%emt 0:00:13]} 45. Kd2 {[%emt 0:00:09]} Rxf4 {[%emt 0:00:04]} 46. Nxf4+ {[%emt 0:00:03]} Kf5 {[%emt 0:00:05]} 47. Ke3 {[%emt 0:00:43]} Kg4 {[%emt 0:02:16]} 48. Ng6 {[%emt 0:03:58]} Nxd5+ {[%emt 0:01:59]} 49. Kd4 {[%emt 0:00:02]} Kf5 {[%emt 0:01:44]} 50. Nh4+ {[%emt 0:00:23]} Ke6 {[%emt 0:00:05]} 51. Ke4 {[%emt 0:01:00]} Nf6+ {[%emt 0:00:51]} 52. Kf4 {[%emt 0:00:04]} Nh5+ {[%emt 0:04:18]} 53. Kg4 {[%emt 0:00:32]} Ng7 {[%emt 0:00:11]} 54. Kf4 {[%emt 0:01:20]} Kf6 {[%emt 0:00:11]} 55. Ke4 {[%emt 0:01:44]} e6 {[%emt 0:00:14]} 56. Nf3 {[%emt 0:00:50]} h5 {[%emt 0:00:27]} 57. Nd2 {[%emt 0:01:11]} d5+ {[%emt 0:00:43]} 58. Kf3 {[%emt 0:00:20]} Kg5 {[%emt 0:00:23]} 59. Nb3 {[%emt 0:00:36]} e5 {[%emt 0:00:39]} 60. Nc5 {[%emt 0:00:17]} e4+ {[%emt 0:00:27]} 61. Kf2 {[%emt 0:01:38]} Kf4 {[%emt 0:01:00]} 62. g3+ {[%emt 0:00:34]} Ke5 {[%emt 0:00:13]} 63. Nd7+ {[%emt 0:00:08]} Ke6 {[%emt 0:00:19]} 64. Nf8+ {[%emt 0:00:15]} Kf5 {[%emt 0:00:21]} 65. Nd7 {[%emt 0:01:13]} d4 {[%emt 0:00:17]} 66. Nb6 {[%emt 0:00:05]} Ne8 {[%emt 0:00:54]} 67. Nd5 {[%emt 0:00:43]} Nf6 {[%emt 0:00:10]} 68. Ne7+ {[%emt 0:00:06]} Ke6 {[%emt 0:00:15]} 69. Ng6 {[%emt 0:00:32]} Kd5 {[%emt 0:00:29]} 70. Ke2 {[%emt 0:00:24]} d3+ {[%emt 0:00:47]} 71. Kd1 {[%emt 0:01:38]} e3 {[%emt 0:00:12]} 72. Nf4+ {[%emt 0:00:06]} Ke4 {[%emt 0:00:05]} 73. Ne6 {[%emt 0:00:04]} Ng4 {[%emt 0:00:57]} 74. Nc5+ {[%emt 0:00:09]} Kd4 {[%emt 0:00:06]} 75. Ne6+ {[%emt 0:01:49]} Kc3 {[%emt 0:00:13]} 76. Nf4 {[%emt 0:00:04]} Nf2+ {[%emt 0:00:08]} 77. Ke1 {[%emt 0:00:02]} d2+ {[%emt 0:00:14]} 78. Ke2 {[%emt 0:00:01]} d1=Q+ {[%emt 0:00:12]} 79. Kxe3 {[%emt 0:00:05]} Ng4+ {[%emt 0:00:17]} 80. Ke4 {[%emt 0:00:02]} Qc2+ {[%emt 0:00:10]} 81. Kf3 {[%emt 0:00:17]} Nh2+ {[%emt 0:01:43]} 82. Ke3 {[%emt 0:00:02]} Nf1+ {[%emt 0:00:06]} 83. Kf3 {[%emt 0:00:05]} Nd2+ {[%emt 0:00:07]} 84. Kf2 {[%emt 0:00:14]} Qf5 {[%emt 0:00:31]} 85. Kg2 {[%emt 0:00:14]} Qe4+ {[%emt 0:00:05]} 86. Kg1 {[%emt 0:00:20]} Qe1+ {[%emt 0:00:04]} 87. Kh2 {[%emt 0:00:16]} Nf1+ {[%emt 0:00:06]} 88. Kh1 {[%emt 0:00:11]} Nxg3+ {[%emt 0:00:07]} 89. Kg2 {[%emt 0:00:03]} Ne4 {[%emt 0:00:40]} 90. Kf3 {[%emt 0:00:29]} Nd2+ {[%emt 0:00:10]} 91. Kg2 {[%emt 0:00:09]} Qf1+ {[%emt 0:00:07]} 92. Kg3 {[%emt 0:00:03]} Qf3+ {[%emt 0:00:05]} 0-1

[Event "Marienbad Open-A2 2019"]
[Site "Marianske Lazne"]
[Date "2019.01.26"]
[Round "9"]
[White "Liu, Guanchu"]
[Black "Swicarz, Maciej"]
[Result "1-0"]
[ECO "B20"]
[WhiteElo "2425"]
[BlackElo "2331"]
[Annotator "RC"]
[PlyCount "51"]
[EventDate "2019.01.17"]
[EventType "tourn"]
[EventCountry "CZE"]
[SourceTitle "playchess.com"]
[Source "ChessBase"]
[SourceQuality "1"]
[TimeControl "40/5400+30:1800+30"]

1. e4 {[%emt 0:00:00]} c5 {[%emt 0:00:00]} 2. Ne2 {[%emt 0:00:59]} Nf6 {[%emt 0:00:06]} 3. Nbc3 {[%emt 0:00:24]} d6 {[%emt 0:00:07]} 4. d4 {[%emt 0:00:38]} cxd4 {[%emt 0:00:09]} 5. Nxd4 {[%emt 0:00:06]} a6 {[%emt 0:00:09]} 6. Be3 {[%emt 0:05:44]} e5 {[%emt 0:00:12]} 7. Nf3 {[%emt 0:00:06]} Be7 {[%emt 0:01:58]} 8. Bc4 {[%emt 0:00:09]} Be6 {[%emt 0:02:34]} 9. Bxe6 {[%emt 0:07:47]} fxe6 {[%emt 0:00:04]} 10. Ng5 {[%emt 0:00:05]} Qd7 {[%emt 0:03:50]} 11. Qf3 {[%emt 0:00:49]} d5 {[%emt 0:42:41]} 12. O-O-O {[%emt 0:11:32]} d4 {[%emt 0:00:43]} 13. Bxd4 {[%emt 0:00:33]} exd4 {[%emt 0:00:37]} 14. e5 {[%emt 0:00:03]} Nc6 {[%emt 0:34:15]} 15. exf6 {[%emt 0:02:46]} Bxf6 {[%emt 0:00:02]} 16. Nce4 {[%emt 0:17:45]} Qe7 {[%emt 0:00:01]} 17. Qh5+ {[%emt 0:06:26]} g6 {[%emt 0:01:36]} 18. Qg4 {[%emt 0:00:09]} e5 {[%emt 0:00:26]} 19. Ne6 {[%emt 0:00:44]} Kf7 {[%emt 0:01:17]} 20. N6c5 {[%emt 0:00:48]} b6 {[%emt 0:07:07]} 21. Nd7 {[%emt 0:04:29]} Bg7 {[%emt 0:01:09]} 22. Qf3+ {[%emt 0:01:10]} Ke6 {[%emt 0:00:09]} 23. Nxb6 {[%emt 0:00:35]} Rab8 {[%emt 0:01:07]} 24. Qb3+ {[%emt 0:00:15]} Kf5 {[%emt 0:00:19]} 25. Qh3+ {[%emt 0:00:14]} Kxe4 {[%emt 0:00:18]} 26. Qf3# {Kd5} 1-0

[Event "Marienbad Open-A2 2019"]
[Site "Marianske Lazne"]
[Date "2019.01.26"]
[Round "9"]
[White "Kulkarni Bhakti"]
[Black "Gungl, Theo"]
[Result "1/2-1/2"]
[ECO "B22"]
[WhiteElo "2303"]
[BlackElo "2368"]
[Annotator "NA"]
[PlyCount "33"]
[EventDate "2019.01.17"]
[EventType "tourn"]
[EventCountry "CZE"]
[SourceTitle "playchess.com"]
[Source "ChessBase"]
[SourceQuality "1"]
[TimeControl "40/5400+30:1800+30"]

{[%evp 13,32,20,1,19,10,4,32767,32767,32767,32767,14,0,3,0,0,0,32767,-28,32767,-18,-18]} 1. e4 {[%emt 0:03:49]} c5 {[%emt 0:00:00]} 2. c3 {[%emt 0:00:20]} d5 {[%emt 0:00:00]} 3. exd5 {[%emt 0:00:23]} Qxd5 {[%emt 0:00:00]} 4. d4 {[%emt 0:00:09]} Nf6 {[%emt 0:00:00]} 5. Nf3 {[%emt 0:00:17]} Bg4 {[%emt 0:00:00]} 6. Be2 {[%emt 0:00:12]} e6 {[%emt 0:00:02]} 7. h3 {[%emt 0:01:43]} Bh5 {[%emt 0:00:10]} 8. O-O {[%emt 0:00:48]} Nc6 {[%emt 0:00:07]} 9. Be3 {[%emt 0:02:31]} cxd4 {[%emt 0:00:05]} 10. cxd4 {[%emt 0:02:02]} Bb4 {[%emt 0:00:32]} 11. a3 {[%emt 0:01:38]} Ba5 {[%emt 0:00:14]} 12. Nc3 {[%emt 0:03:09] LiveBook: 13 Games} Qd6 {[%emt 0:01:35]} 13. Nb5 {[%emt 0:09:41]} Qe7 {[%emt 0:15:37]} 14. Rc1 {[%emt 0:09:45]} Nd5 {[%emt 0:12:11]} 15. Bg5 {[%emt 0:06:03]} f6 {[%emt 0:01:48]} 16. Bd2 {[%emt 0:04:36]} Bb6 $11 {[%emt 0:01:07]} 17. Re1 {[%emt 0:00:55]} 1/2-1/2